bitfinex/quotes_SOLUSD_20250806
["timestamp","ask_amount","ask_price","bid_price","bid_amount"]
[1754501722592,152.79218244,168.35,168.31,6.63128361]
[1754501723728,152.08218244,168.35,168.31,6.63128361]
[1754501723917,0.71,168.34,168.31,6.63128361]
[1754501724220,0.71,168.34,168.31,5.94128361]
[1754501724806,6.89218244,168.34,168.31,5.94128361]
[1754501725131,0.71,168.34,168.31,5.94128361]
[1754501725512,6.89218244,168.34,168.31,5.94128361]
[1754501726115,152.08218244,168.35,168.31,6.63128361]
[1754501726322,145.9,168.34,168.31,6.63128361]
[1754501726634,146.61,168.34,168.31,6.63128361]
[1754501726835,152.79218244,168.34,168.31,5.94128361]
[1754501727913,0.71,168.33,168.31,5.94128361]
[1754501729414,152.08218244,168.34,168.31,5.94128361]
[1754501729736,152.79218244,168.34,168.31,5.94128361]
[1754501730420,146.61,168.34,168.31,5.94128361]
[1754501730642,152.79218244,168.34,168.31,5.94128361]
[1754501730949,152.79218244,168.34,168.31,0.06]
[1754501730950,10.17650574,168.33,168.31,0.06]
[1754501731538,6.18218244,168.33,168.31,0.06]
[1754501732038,152.79218244,168.34,168.31,0.75]
[1754501732242,152.79218244,168.34,168.31,0.06]
[1754501732547,0.71,168.33,168.31,0.06]
[1754501734411,152.08218244,168.34,168.31,0.06]
[1754501734661,145.9,168.34,168.31,0.75]
[1754501735667,152.79218244,168.34,168.31,0.75]
[1754501736010,152.79218244,168.34,168.31,0.06]
[1754501737464,3.99801605,168.33,168.31,0.06]
[1754501740439,152.08218244,168.34,168.31,0.06]
[1754501740651,4.71335928,168.33,168.31,0.06]
[1754501740840,0.71,168.33,168.31,0.06]
[1754501741148,145.9,168.34,168.32,0.69]
[1754501741317,4.00342933,168.33,168.31,6.24218244]
[1754501741520,0.03,168.35,168.32,6.87218244]
[1754501741746,0.03,168.35,168.34,6.18218244]
[1754501741937,0.03,168.35,168.34,6.87218244]
[1754501742342,0.03,168.35,168.34,12.81254123]
[1754501742544,1e-08,168.36,168.35,0.28432314]
[1754501742718,1e-08,168.37,168.35,22.26272115]
[1754501742917,1e-08,168.37,168.36,63.67839801]
[1754501743166,0.2,168.42,168.38,0.28432314]
[1754501743358,0.2,168.42,168.41,6.18218244]
[1754501743519,4.90943203,168.42,168.38,47.88218244]
[1754501743721,0.71,168.41,168.39,6.18218244]
[1754501743933,4.70952377,168.41,168.38,41.7]
[1754501744137,4.70788457,168.41,168.38,41.7]
[1754501744422,4.70788457,168.41,168.39,5.93859492]
[1754501744857,0.71,168.4,168.38,47.63881867]
[1754501745155,0.71,168.39,168.38,5.93881867]
[1754501745342,6.89218244,168.39,168.36,5.93965312]
[1754501745549,0.71,168.38,168.36,5.93965312]
[1754501745745,10.17950878,168.39,168.36,5.93965312]
[1754501745746,0.71,168.39,168.36,5.93965312]
[1754501745930,3.9974402,168.38,168.36,5.93965312]
[1754501746129,4.7074402,168.39,168.36,5.93965312]
[1754501746528,3.9974402,168.38,168.36,5.93965312]
[1754501746937,3.9974402,168.38,168.36,12.81183556]
[1754501747141,10.17962264,168.4,168.36,12.81183556]
[1754501747453,10.88962264,168.4,168.36,6.62965312]
[1754501747657,0.71,168.4,168.36,26.97096837]
[1754501747847,0.71,168.4,168.37,0.69]
[1754501748048,4.70630383,168.4,168.37,0.69]
[1754501748234,0.71,168.4,168.37,0.69]
[1754501748959,0.71,168.4,168.38,5.93894761]
[1754501749140,6.89218244,168.4,168.38,5.93894761]
[1754501749328,0.68,168.39,168.38,5.93894761]
[1754501749654,6.86218244,168.39,168.38,5.93894761]
[1754501750567,145.9,168.38,168.36,12.12183556]
[1754501750865,0.2,168.42,168.37,6.90218244]
[1754501751166,0.2,168.42,168.39,6.18218244]
[1754501751534,0.2,168.42,168.39,6.90218244]
[1754501751757,0.2,168.42,168.39,6.18218244]
[1754501751928,0.2,168.42,168.41,6.18218244]
[1754501752439,0.2,168.42,168.41,5.93788967]
[1754501753257,0.2,168.42,168.41,12.84007211]
[1754501755348,0.2,168.42,168.41,54.52007211]
[1754501755846,1e-08,168.42,168.41,54.52007211]
[1754501756260,1e-08,168.42,168.41,54.80439525]
[1754501756435,1e-08,168.42,168.41,69.91061082]
[1754501759333,1e-08,168.44,168.43,41.10621557]
[1754501759750,1e-08,168.44,168.43,48.00839801]
[1754501760140,1e-08,168.44,168.43,89.68839801]
[1754501760342,1e-08,168.44,168.43,95.62558259]
[1754501760679,1e-08,168.44,168.43,80.51936702]
[1754501762044,1e-08,168.44,168.43,79.79936702]
[1754501762454,1e-08,168.44,168.43,80.51936702]
[1754501763463,1e-08,168.44,168.43,79.79936702]
[1754501764170,1e-08,168.44,168.43,73.61718458]
[1754501764368,1e-08,168.44,168.43,79.79936702]
[1754501767756,1e-08,168.44,168.43,5.93718458]
[1754501767958,0.68000001,168.44,168.43,5.93718458]
[1754501769789,6.86218245,168.44,168.4,0.06]
[1754501769947,6.18218244,168.43,168.41,47.59779553]
[1754501770268,0.68,168.42,168.41,47.59779553]
[1754501771969,6.18218244,168.43,168.41,47.59779553]
[1754501772372,6.86218244,168.43,168.41,47.59779553]
[1754501772683,0.68,168.42,168.41,47.59779553]
[1754501773787,6.86218244,168.42,168.4,0.06]
[1754501774002,6.18218244,168.41,168.4,0.06]
[1754501774280,6.86218244,168.41,168.4,0.06]
[1754501781381,0.68,168.41,168.4,0.06]
[1754501781583,6.86218244,168.41,168.4,0.06]
[1754501783294,6.18218244,168.41,168.4,0.06]
[1754501783596,6.18218244,168.42,168.4,0.73]
[1754501783805,6.18218244,168.41,168.4,0.73]
[1754501784998,6.18218244,168.43,168.4,0.73]
[1754501785372,6.18218244,168.43,168.41,0.67]
[1754501785886,6.18218244,168.43,168.4,5.99824228]
[1754501786197,6.85218244,168.42,168.4,5.99824228]
[1754501786415,6.18218244,168.41,168.4,5.99824228]
[1754501787183,6.85218244,168.41,168.4,5.99824228]
[1754501787377,6.85218244,168.41,168.4,0.06]
[1754501787578,6.18218244,168.41,168.4,0.06]
[1754501789082,6.85218244,168.41,168.4,0.06]
[1754501790728,6.18218244,168.41,168.4,0.06]
[1754501791682,6.85218244,168.41,168.4,0.06]
[1754501793021,0.67,168.41,168.4,0.06]
[1754501793192,152.08218244,168.42,168.4,0.06]
[1754501793529,152.08218244,168.42,168.4,0.73]
[1754501793881,145.9,168.42,168.4,0.73]
[1754501794131,145.9,168.42,168.41,0.67]
[1754501794600,145.9,168.42,168.41,6.60788967]
[1754501794999,1e-08,168.44,168.41,27.63479629]
[1754501795315,1e-08,168.44,168.42,0.67]
[1754501795702,1e-08,168.44,168.43,0.67]
[1754501795906,1e-08,168.44,168.41,26.96479629]
[1754501796102,6.18218245,168.44,168.42,0.67]
[1754501796289,6.85218244,168.43,168.41,5.93788967]
[1754501796490,6.18218244,168.42,168.41,5.93788967]
[1754501797213,6.18218244,168.42,168.4,0.06]
[1754501797389,6.18218244,168.42,168.4,0.73]
[1754501797715,6.18218244,168.43,168.41,0.67]
[1754501798089,1e-08,168.44,168.42,0.67]
[1754501798977,1e-08,168.44,168.43,5.93718458]
[1754501800092,1e-08,168.44,168.41,5.93788967]
[1754501800415,145.90000001,168.44,168.42,0.67]
[1754501800914,145.90000001,168.44,168.43,0.67]
[1754501801295,1e-08,168.44,168.43,6.85218244]
[1754501801500,1e-08,168.44,168.43,6.18218244]
[1754501801702,1e-08,168.44,168.43,6.85218244]
[1754501802416,1e-08,168.44,168.43,12.78936702]
[1754501804197,1e-08,168.44,168.43,6.60718458]
[1754501804706,1e-08,168.44,168.43,5.93718458]
[1754501806400,1e-08,168.44,168.43,6.60718458]
[1754501806720,1e-08,168.44,168.43,5.93718458]
[1754501807718,1e-08,168.44,168.43,6.60718458]
[1754501808796,1e-08,168.44,168.43,12.78936702]
[1754501810523,1e-08,168.44,168.43,5.93718458]
[1754501811216,1e-08,168.44,168.43,6.65718458]
[1754501812709,1e-08,168.44,168.43,5.93718458]
[1754501816502,1e-08,168.44,168.43,6.65718458]
[1754501816900,1e-08,168.44,168.43,12.83936702]
[1754501820006,1e-08,168.44,168.43,12.11936702]
[1754501820818,1e-08,168.44,168.43,12.83936702]
[1754501821122,1e-08,168.44,168.43,12.11936702]
[1754501823002,0.65000001,168.44,168.43,47.57718458]
[1754501823518,1e-08,168.44,168.43,47.57718458]
[1754501825831,0.65000001,168.44,168.43,47.57718458]
[1754501826506,1e-08,168.44,168.43,48.29718458]
[1754501826703,1e-08,168.44,168.43,54.47936702]
[1754501826902,1e-08,168.44,168.43,69.86990573]
[1754501827126,1e-08,168.45,168.44,15.39053871]
[1754501827430,1e-08,168.46,168.44,22.29272115]
[1754501827634,1e-08,168.46,168.45,57.75053871]
[1754501827927,1e-08,168.46,168.45,63.68701837]
[1754501828128,1e-08,168.46,168.45,67.68259437]
[1754501828608,1e-08,168.46,168.45,73.86477681]
[1754501830944,1e-08,168.46,168.45,69.86920081]
[1754501831104,1e-08,168.46,168.45,76.05138381]
[1754501831430,1e-08,168.46,168.45,53.7586621]
[1754501831616,1e-08,168.46,168.45,12.8386621]
[1754501831809,1e-08,168.46,168.45,54.4786621]
[1754501838613,1e-08,168.46,168.45,53.7586621]
[1754501839038,1e-08,168.46,168.45,12.1186621]
[1754501839239,1e-08,168.46,168.45,54.4186621]
[1754501839810,9.91819007,168.5,168.46,6.18218244]
[1754501840026,9.91819007,168.5,168.47,41.64]
[1754501840423,6.18218244,168.5,168.47,41.64]
[1754501840632,6.18218244,168.5,168.48,5.9354226]
[1754501840837,145.9,168.51,168.48,5.9354226]
[1754501841017,152.08218244,168.51,168.48,5.9354226]
[1754501841215,145.9,168.51,168.48,5.9354226]
[1754501841420,152.08218244,168.51,168.48,5.9354226]
[1754501841912,152.79218244,168.51,168.48,5.9354226]
[1754501842235,152.08218244,168.51,168.48,6.5954226]
[1754501842623,145.9,168.51,168.48,6.5954226]
[1754501842828,146.61,168.51,168.48,6.5954226]
[1754501843434,146.61,168.51,168.48,5.9354226]
[1754501844120,152.79218244,168.51,168.48,5.9354226]
[1754501844317,6.89218244,168.5,168.48,5.9354226]
[1754501844537,0.71,168.49,168.48,5.9354226]
[1754501845517,6.89218244,168.5,168.48,5.9354226]
[1754501846545,6.89218244,168.49,168.48,5.9354226]
[1754501846920,0.71,168.49,168.48,5.9354226]
[1754501847823,6.89218244,168.49,168.48,5.9354226]
[1754501848619,6.89218244,168.49,168.46,47.55612727]
[1754501849445,6.18218244,168.49,168.46,47.55612727]
[1754501849650,6.18218244,168.48,168.46,47.55612727]
[1754501850033,6.18218244,168.48,168.46,47.36394397]
[1754501850534,6.18218244,168.49,168.46,48.02394397]
[1754501850725,6.18218244,168.49,168.46,6.40394397]
[1754501850928,6.18218244,168.49,168.46,48.02394397]
[1754501852053,6.89218244,168.49,168.46,47.36394397]
[1754501852652,6.18218244,168.49,168.46,48.02394397]
[1754501852850,6.89218244,168.49,168.46,47.36394397]
[1754501853547,6.18218244,168.47,168.46,47.36394397]
[1754501854647,0.71,168.48,168.46,47.36394397]
[1754501854648,0.71,168.48,168.46,5.74394397]
[1754501854972,6.18218244,168.47,168.45,5.93646147]
[1754501855282,6.89218244,168.46,168.43,41.62]
[1754501855581,6.18218244,168.46,168.44,0.66]
[1754501856168,6.18218244,168.46,168.45,5.93647966]
[1754501856367,3.99872842,168.47,168.45,5.93647966]
[1754501856664,10.18091086,168.47,168.45,6.59647966]
[1754501856867,6.18218244,168.47,168.45,6.59647966]
[1754501857054,6.18218244,168.47,168.45,5.93647966]
[1754501857256,6.18218244,168.46,168.45,5.93647966]
[1754501858349,6.18218244,168.46,168.44,5.9968321]
[1754501858872,6.18218244,168.46,168.44,6.6568321]
[1754501859750,3.99891881,168.47,168.44,6.6568321]
[1754501859950,6.18218244,168.46,168.44,6.6568321]
[1754501860643,3.99891881,168.47,168.44,6.6568321]
[1754501860859,6.18218244,168.46,168.44,6.6568321]
[1754501861386,10.18110125,168.47,168.46,5.93612727]
[1754501861547,6.18218244,168.47,168.46,5.93612727]
[1754501861748,6.18218244,168.47,168.46,6.59612727]
[1754501862148,6.18218244,168.47,168.46,5.93612727]
[1754501862574,10.1818916,168.47,168.46,5.93612727]
[1754501862778,6.18218244,168.47,168.46,6.59612727]
[1754501862960,0.03,168.49,168.46,12.77830971]
[1754501863162,0.03,168.49,168.47,42.28]
[1754501863570,0.03,168.49,168.47,41.62]
[1754501863879,0.03,168.49,168.48,0.66]
[1754501864381,0.03,168.49,168.48,6.5954226]
[1754501870759,0.03,168.49,168.48,5.9354226]
[1754501870960,0.03,168.49,168.48,6.6054226]
[1754501875686,4.66008302,168.49,168.45,5.93647966]
[1754501875887,3.95008302,168.47,168.45,47.55647966]
[1754501876186,4.6819796,168.48,168.45,48.22647966]
[1754501876187,3.95008302,168.48,168.45,48.22647966]
[1754501876377,3.95008302,168.48,168.46,0.67]
[1754501876987,3.95008302,168.48,168.47,5.93577491]
[1754501877293,7.95197404,168.48,168.47,5.93577491]
[1754501878668,10.17571939,168.48,168.47,5.93577491]
[1754501879178,10.17571939,168.48,168.44,0.06]
[1754501879179,10.85571939,168.48,168.44,0.06]
[1754501879395,6.17382837,168.45,168.44,5.99671753]
[1754501879909,6.17382837,168.45,168.44,5.9968321]
[1754501880588,4.00178089,168.46,168.44,6.6668321]
[1754501880912,6.17382837,168.46,168.44,6.6668321]
[1754501881210,6.17382837,168.46,168.44,5.9968321]
[1754501882691,6.17382837,168.46,168.44,0.06]
[1754501883282,187.55,168.49,168.44,0.06]
[1754501883283,6.17382837,168.45,168.44,0.06]
[1754501885919,3.99998513,168.46,168.44,0.06]
[1754501886107,152.07382837,168.45,168.44,0.06]
[1754501886885,152.07382837,168.45,168.44,0.73]
[1754501887478,152.07382837,168.45,168.44,0.06]
[1754501888612,145.9,168.45,168.44,0.06]
[1754501888784,152.07382837,168.45,168.44,0.06]
[1754501888978,156.75259639,168.45,168.44,0.06]
[1754501890101,16.78907605,168.45,168.44,0.06]
[1754501890282,10.85259639,168.45,168.44,0.06]
[1754501892814,16.78907605,168.45,168.44,0.06]
[1754501894241,42.78907605,168.45,168.44,0.06]
[1754501895028,145.9,168.44,168.4,0.06]
[1754501895234,6.17382837,168.41,168.4,0.73]
[1754501895531,6.17382837,168.43,168.41,0.67]
[1754501896398,6.17382837,168.43,168.42,0.67]
[1754501896719,41.62,168.45,168.42,0.67]
[1754501896925,6.17382837,168.43,168.42,0.67]
[1754501897217,6.17382837,168.44,168.42,0.67]
[1754501897421,6.17382837,168.45,168.42,0.67]
[1754501898227,41.6,168.47,168.44,5.9368321]
[1754501898517,6.17382837,168.45,168.44,5.9368321]
[1754501898900,41.6,168.47,168.44,6.6368321]
[1754501899101,6.17382837,168.46,168.44,6.6368321]
[1754501900812,145.9,168.47,168.42,26.95520824]
[1754501901026,0.03,168.48,168.45,0.7]
[1754501901215,0.03,168.48,168.45,6.87382837]
[1754501901404,0.03,168.48,168.45,0.7]
[1754501901596,0.03,168.48,168.46,0.7]
[1754501902329,0.03,168.48,168.47,0.7]
[1754501904946,6.20382837,168.48,168.47,6.63577491]
[1754501905738,0.03,168.48,168.47,5.93577491]
[1754501905910,6.59382837,168.48,168.44,0.06]
[1754501906114,6.17382837,168.46,168.44,0.76]
[1754501906539,0.42,168.48,168.45,5.93647966]
[1754501906840,146.6,168.47,168.44,5.99670642]
[1754501907045,146.6,168.47,168.44,0.06]
[1754501907738,6.17382837,168.45,168.44,0.06]
[1754501908513,6.87382837,168.45,168.44,0.06]
[1754501909920,48.47382837,168.45,168.44,0.06]
[1754501910314,52.46571922,168.45,168.44,0.06]
[1754501910515,0.03,168.48,168.44,0.76]
[1754501910724,0.03,168.48,168.44,6.93382837]
[1754501911024,0.03,168.48,168.44,0.76]
[1754501911025,6.20382837,168.48,168.44,0.76]
[1754501911221,6.20382837,168.48,168.45,0.7]
[1754501911717,6.20382837,168.48,168.46,0.7]
[1754501912025,6.20382837,168.48,168.47,5.93577491]
[1754501912621,6.20382837,168.48,168.47,6.63577491]
[1754501912943,0.03,168.48,168.47,6.63577491]
[1754501914320,6.20382837,168.48,168.47,5.93577491]
[1754501916354,6.20382837,168.48,168.46,5.93612727]
[1754501916647,6.20382837,168.48,168.46,6.63612727]
[1754501916821,6.17382837,168.47,168.46,5.93612727]
[1754501917645,6.17382837,168.47,168.45,5.93647222]
[1754501917848,6.17382837,168.46,168.45,5.93647222]
[1754501918028,0.03,168.48,168.45,6.63647222]
[1754501918218,0.03,168.48,168.46,0.7]
[1754501918423,0.03,168.48,168.47,5.93577491]
[1754501919056,0.03,168.48,168.47,6.63577491]
[1754501919225,0.03,168.48,168.47,12.80960328]
[1754501920068,0.03,168.48,168.47,16.83383128]
[1754501920955,0.03,168.49,168.47,32.22436999]
[1754501921153,0.03,168.49,168.48,6.17382837]
[1754501921347,0.03,168.49,168.48,6.87382837]
[1754501921733,0.03,168.5,168.48,21.98004394]
[1754501921939,0.03,168.51,168.49,48.26436708]
[1754501922252,1e-08,168.51,168.5,21.56436708]
[1754501922669,1e-08,168.51,168.5,22.26436708]
[1754501923351,1e-08,168.51,168.5,28.19908518]
[1754501925261,1e-08,168.51,168.5,69.77908518]
[1754501927484,1e-08,168.51,168.5,63.60525681]
[1754501927776,1e-08,168.51,168.5,69.77908518]
[1754501928480,1e-08,168.51,168.5,69.77908481]
[1754501928651,1e-08,168.51,168.5,75.95291318]
[1754501931976,1e-08,168.52,168.51,15.10621557]
[1754501932153,1e-08,168.52,168.51,21.99004394]
[1754501932354,1e-08,168.52,168.51,27.92440985]
[1754501932666,1e-08,168.52,168.51,45.75131085]
[1754501933968,1e-08,168.52,168.51,27.92440985]
[1754501934170,1e-08,168.52,168.51,69.07873299]
[1754501934584,1e-08,168.52,168.51,69.78873299]
[1754501935394,1e-08,168.52,168.51,54.68251742]
[1754501935877,1e-08,168.52,168.51,69.78873299]
[1754501936686,1e-08,168.52,168.51,54.68251742]
[1754501936859,1e-08,168.52,168.51,69.78873299]
[1754501940387,1e-08,168.52,168.51,53.95251742]
[1754501940776,1e-08,168.52,168.51,54.66251742]
[1754501941277,1e-08,168.52,168.51,53.95251742]
[1754501941862,1e-08,168.52,168.51,54.66251742]
[1754501943068,1e-08,168.52,168.51,48.48868905]
[1754501943287,1e-08,168.52,168.51,53.95251742]
[1754501944106,1e-08,168.52,168.51,54.66251742]
[1754501944784,1e-08,168.52,168.51,48.20436591]
[1754501944990,1e-08,168.52,168.51,47.49436591]
[1754501946889,1e-08,168.52,168.51,54.37819428]
[1754501949797,1e-08,168.52,168.51,47.49436591]
[1754501950169,1e-08,168.52,168.51,54.37819428]
[1754501950902,1e-08,168.52,168.51,54.66251742]
[1754501960798,1e-08,168.52,168.51,69.76873299]
[1754501962485,1e-08,168.52,168.51,47.77868905]
[1754501962688,1e-08,168.52,168.51,53.95251742]
[1754501963127,1e-08,168.52,168.51,47.77868905]
[1754501963591,1e-08,168.52,168.51,54.61251742]
[1754501965247,1e-08,168.52,168.51,53.95251742]
[1754501966127,1e-08,168.52,168.51,54.61251742]
[1754501966836,1e-08,168.52,168.51,69.71873299]
[1754501969349,1e-08,168.52,168.51,53.95251742]
[1754501969559,1e-08,168.52,168.51,47.77868905]
[1754501969733,1e-08,168.52,168.51,47.49436591]
[1754501969925,1e-08,168.52,168.51,47.47436591]
[1754501970523,1e-08,168.52,168.51,47.53436591]
[1754501971931,1e-08,168.52,168.51,69.75873299]
[1754501973759,1e-08,168.52,168.51,63.58490462]
[1754501974064,1e-08,168.52,168.51,47.81868905]
[1754501974249,1e-08,168.52,168.51,47.53436591]
[1754501975149,1e-08,168.52,168.51,53.70819428]
[1754501975351,1e-08,168.52,168.51,54.36819428]
[1754501975660,1e-08,168.52,168.51,69.75873299]
[1754501980862,4.00566637,168.56,168.51,114.26647733]
[1754501981161,0.71,168.58,168.55,6.17382837]
[1754501981358,6.88382837,168.6,168.56,41.54]
[1754501981559,4.71403343,168.59,168.56,41.54]
[1754501981853,17.35406786,168.62,168.56,41.54]
[1754501981854,4.00403343,168.58,168.57,5.93225366]
[1754501982939,4.00403343,168.58,168.57,13.05040517]
[1754501983145,4.00252798,168.6,168.58,0.28432314]
[1754501983340,0.81,168.63,168.59,47.71382837]
[1754501983555,4.00057035,168.62,168.59,47.71382837]
[1754501983859,4.00057035,168.61,168.6,5.9311981]
[1754501984062,4.00057035,168.61,168.6,47.4711981]
[1754501984229,4.00057035,168.62,168.6,48.1311981]
[1754501984435,0.1,168.63,168.6,62.95919335]
[1754501984842,0.1,168.63,168.61,0.66]
[1754501985136,0.1,168.63,168.62,41.54]
[1754501985633,0.1,168.63,168.62,48.37382837]
[1754501985851,0.1,168.63,168.62,54.30432297]
[1754501987236,0.1,168.63,168.62,53.64432297]
[1754501987439,0.1,168.63,168.62,47.4704946]
[1754501988264,0.81,168.63,168.62,47.4504946]
[1754501988762,0.81,168.63,168.62,5.9304946]
[1754501988935,0.1,168.63,168.62,47.4504946]
[1754501989330,0.79,168.63,168.62,47.4504946]
[1754501989555,0.1,168.63,168.62,47.4504946]
[1754501991164,0.1,168.63,168.62,6.6104946]
[1754501991371,0.1,168.63,168.62,47.4504946]
[1754501991564,0.1,168.63,168.58,5.93190176]
[1754501991749,0.69,168.62,168.59,41.52]
[1754501991953,0.1,168.63,168.6,6.6111981]
[1754501992256,0.1,168.63,168.62,6.17382837]
[1754501992769,0.1,168.63,168.62,6.85382837]
[1754501993465,0.1,168.63,168.61,41.52]
[1754501993976,0.79,168.63,168.62,5.9304946]
[1754501994141,6.27382837,168.63,168.62,5.9304946]
[1754501994869,6.96382837,168.63,168.62,5.9304946]
[1754501995171,6.27382837,168.63,168.62,5.9304946]
[1754501995878,0.1,168.63,168.62,5.9304946]
[1754501996046,0.1,168.63,168.62,6.6104946]
[1754501996240,0.1,168.63,168.62,12.78432297]
[1754501996465,0.1,168.63,168.62,13.06864611]
[1754501999961,0.1,168.63,168.62,12.38864611]
[1754502000160,0.1,168.63,168.62,5.9304946]
[1754502000451,0.1,168.63,168.62,47.4304946]
[1754502000452,0.79,168.63,168.62,47.4304946]
[1754502000654,6.96382837,168.63,168.62,5.9304946]
[1754502000959,6.27382837,168.63,168.62,5.9304946]
[1754502001579,0.1,168.63,168.62,5.9304946]
[1754502002282,0.1,168.63,168.62,6.6104946]
[1754502002488,0.1,168.63,168.62,12.78432297]
[1754502002660,0.1,168.63,168.62,54.28432297]
[1754502003179,0.1,168.63,168.62,48.1104946]
[1754502005474,0.1,168.63,168.62,47.4304946]
[1754502007065,0.1,168.63,168.62,48.1104946]
[1754502008392,1e-08,168.63,168.62,95.67486168]
[1754502010392,145.9,168.66,168.63,15.39053871]
[1754502010609,145.9,168.66,168.64,48.35382837]
[1754502010776,145.9,168.66,168.65,0.68]
[1754502010967,6.17382837,168.71,168.65,7.13815151]
[1754502011288,6.17382837,168.71,168.66,48.35382837]
[1754502011668,6.86382837,168.71,168.66,48.35382837]
[1754502011868,0.69,168.71,168.67,7.13815151]
[1754502012070,6.17382837,168.72,168.68,41.5]
[1754502012287,6.86382837,168.72,168.69,5.92803367]
[1754502012486,6.17382837,168.71,168.69,5.92803367]
[1754502015502,6.17382837,168.7,168.69,5.92803367]
[1754502016615,0.69,168.73,168.69,5.92803367]
[1754502017015,6.17382837,168.74,168.7,42.18]
[1754502017176,145.9,168.75,168.7,41.5]
[1754502017177,6.17382837,168.73,168.7,41.5]
[1754502017506,6.17382837,168.73,168.71,0.68]
[1754502018172,6.17382837,168.73,168.71,5.92733092]
[1754502018373,6.17382837,168.72,168.71,5.92733092]
[1754502018676,0.69,168.74,168.71,5.92733092]
[1754502018882,6.17382837,168.72,168.71,5.92733092]
[1754502021184,6.17382837,168.73,168.71,5.92733092]
[1754502021702,6.17382837,168.73,168.71,6.63733092]
[1754502022198,3.97748485,168.74,168.73,5.92662834]
[1754502022398,10.15131322,168.74,168.73,5.92662834]
[1754502023695,10.85131322,168.74,168.73,5.92662834]
[1754502024289,6.87382837,168.74,168.71,5.92733092]
[1754502024507,6.17382837,168.72,168.71,5.92733092]
[1754502024812,6.17382837,168.72,168.69,14.82008417]
[1754502024813,6.87382837,168.72,168.69,5.92803367]
[1754502024991,6.17382837,168.7,168.69,5.92803367]
[1754502025918,6.17382837,168.72,168.69,6.63803367]
[1754502026293,3.97996479,168.73,168.71,5.92733092]
[1754502026505,6.17382837,168.74,168.72,0.71]
[1754502026811,10.15683512,168.74,168.72,0.71]
[1754502027012,6.17382837,168.74,168.72,0.71]
[1754502027916,6.17382837,168.74,168.71,5.92733092]
[1754502028225,6.17382837,168.72,168.71,5.92733092]
[1754502029588,6.17382837,168.73,168.71,6.63733092]
[1754502029793,6.17382837,168.73,168.72,0.71]
[1754502029992,10.15716713,168.74,168.72,0.71]
[1754502030291,10.15716713,168.74,168.71,5.92733092]
[1754502030292,6.17382837,168.73,168.71,5.92733092]
[1754502030685,6.17382837,168.72,168.71,5.92733092]
[1754502030906,6.17382837,168.73,168.71,5.92733092]
[1754502031107,6.17382837,168.73,168.71,6.63733092]
[1754502031319,152.10382837,168.75,168.72,0.71]
[1754502031518,145.93,168.75,168.73,5.92662834]
[1754502032097,145.93,168.75,168.74,0.71]
[1754502033720,152.10382837,168.75,168.72,42.19]
[1754502033921,6.17382837,168.73,168.71,41.48]
[1754502034223,6.17382837,168.72,168.71,41.48]
[1754502034421,6.17382837,168.72,168.68,5.9283851]
[1754502034608,6.17382837,168.7,168.68,47.4083851]
[1754502035002,6.17382837,168.71,168.68,47.4083851]
[1754502035194,0.18,168.73,168.68,48.1183851]
[1754502035393,6.17382837,168.71,168.68,48.1183851]
[1754502036042,6.17382837,168.71,168.68,51.09799441]
[1754502036201,6.17382837,168.71,168.68,47.4083851]
[1754502036818,6.17382837,168.7,168.68,47.4083851]
[1754502037421,6.17382837,168.69,168.68,41.48]
[1754502037924,6.17382837,168.69,168.67,5.92861218]
[1754502038136,6.17382837,168.68,168.67,5.92861218]
[1754502038600,4.33390193,168.72,168.67,5.92861218]
[1754502038802,6.17382837,168.69,168.67,5.92861218]
[1754502039014,6.17382837,168.69,168.67,6.63861218]
[1754502042142,6.17382837,168.69,168.67,5.92861218]
[1754502042715,6.17382837,168.68,168.67,5.92861218]
[1754502043016,6.87382837,168.68,168.64,0.06]
[1754502043324,6.17382837,168.65,168.64,5.98969469]
[1754502043913,6.17382837,168.65,168.64,0.06]
[1754502046649,0.7,168.67,168.64,0.06]
[1754502046810,6.17382837,168.65,168.64,0.06]
[1754502048954,6.17382837,168.65,168.64,0.77]
[1754502050253,4.69727354,168.69,168.64,6.69979127]